fUST/lending_fUST_20250907
["ID","MTS","AMOUNT","RATE_DAILY","PERIOD"]
[384073672,1757250655745,-480.0,0.00014793,2]
[384073674,1757250655754,-2729.93,0.00014793,2]
[384073676,1757250655764,-1870.6,0.00014793,2]
[384073678,1757250655773,-752.05,0.00014793,2]
[384073680,1757250655783,-2540.81,0.00014793,2]
[384073682,1757250655792,-547.46,0.00014793,2]
[384073684,1757250655802,-201.0,0.00014794,2]
[384073686,1757250655812,-301.25197816,0.00014794,2]
[384073688,1757250655821,-500.0,0.00014794,2]
[384073690,1757250655831,-232.76704239,0.00014794,2]
[384073692,1757250655840,-825.0,0.00014794,2]
[384073694,1757250655850,-1144.0,0.00014794,2]
[384073696,1757250655859,-500.0,0.00014794,2]
[384073698,1757250655869,-480.0,0.00014794,2]
[384073700,1757250655880,-480.0,0.00014794,2]
[384073702,1757250655889,-480.0,0.00014794,2]
[384073704,1757250655898,-751.83,0.00014794,2]
[384073706,1757250655907,-608.47,0.00014794,2]
[384073708,1757250655916,-670.29,0.00014794,2]
[384073710,1757250655925,-525.51521878,0.00014794,2]
[384073712,1757250655935,-624.56,0.00014794,2]
[384073714,1757250655946,-480.0,0.00014794,2]
[384073716,1757250655955,-755.68,0.00014794,2]
[384073718,1757250655964,-565.87,0.00014794,2]
[384073720,1757250655974,-557.73,0.00014794,2]
[384073722,1757250655983,-483.03,0.00014794,2]
[384073724,1757250655992,-694.19,0.00014794,2]
[384073726,1757250656001,-480.0,0.00014794,2]
[384073728,1757250656011,-480.0,0.00014794,2]
[384073730,1757250656020,-545.41,0.00014794,2]
[384073732,1757250656029,-480.0,0.00014794,2]
[384073734,1757250656039,-480.0,0.00014794,2]
[384073736,1757250656048,-480.0,0.00014794,2]
[384073738,1757250656057,-480.0,0.00014794,2]
[384073740,1757250656067,-657.65,0.00014794,2]
[384073742,1757250656076,-656.92,0.00014794,2]
[384073744,1757250656085,-780.92,0.00014794,2]
[384073746,1757250656095,-480.0,0.00014794,2]
[384073748,1757250656104,-349.56473824,0.00014794,2]
[384073750,1757250656113,-480.0,0.00014794,2]
[384073752,1757250656122,-542.37,0.00014794,2]
[384073754,1757250656131,-480.0,0.00014794,2]
[384073756,1757250656141,-536.9,0.00014794,2]
[384073758,1757250656150,-876.28,0.00014794,2]
[384073760,1757250656159,-658.99,0.00014794,2]
[384073762,1757250656169,-861.75,0.00014794,2]
[384073764,1757250656178,-480.0,0.00014794,2]
[384073766,1757250656187,-874.25,0.00014794,2]
[384073768,1757250656196,-623.87,0.00014794,2]
[384073770,1757250656206,-722.1,0.00014794,2]
[384073772,1757250656216,-480.0,0.00014794,2]
[384073774,1757250656225,-1058.98,0.00014794,2]
[384073776,1757250656234,-1494.99,0.00014794,2]
[384073778,1757250656244,-480.0,0.00014794,2]
[384073780,1757250656253,-480.0,0.00014794,2]
[384073782,1757250656263,-1499.33,0.00014794,2]
[384073784,1757250656272,-604.12,0.00014794,2]
[384073786,1757250656281,-779.35,0.00014794,2]
[384073788,1757250656290,-1200.31,0.00014794,2]
[384073790,1757250656299,-480.0,0.00014794,2]
[384073792,1757250656308,-1093.4,0.00014794,2]
[384073794,1757250656318,-1025.97,0.00014794,2]
[384073796,1757250656329,-480.0,0.00014794,2]
[384073797,1757250656338,-709.14,0.00014794,2]
[384073800,1757250656348,-6029.76,0.00014794,2]
[384073801,1757250656359,-480.0,0.00014794,2]
[384073803,1757250656368,-571.14132065,0.00014794,2]
[384073805,1757250656378,-3102.23,0.00014794,2]
[384073807,1757250656389,-517.12,0.00014794,2]
[384073809,1757250656399,-2185.66,0.00014794,2]
[384073811,1757250656409,-480.0,0.00014794,2]
[384073813,1757250656419,-704.37,0.00014794,2]
[384073815,1757250656430,-480.0,0.00014794,2]
[384073817,1757250656440,-480.0,0.00014794,2]
[384073819,1757250656449,-4051.54,0.00014794,2]
[384073822,1757250656459,-857.05,0.00014794,2]
[384073824,1757250656471,-826.42,0.00014794,2]
[384073826,1757250656482,-2064.41,0.00014794,2]
[384073827,1757250656492,-1409.47,0.00014794,2]
[384073829,1757250656502,-480.0,0.00014794,2]
[384073831,1757250656511,-920.23032556,0.00014794,2]
[384077565,1757250729582,1000.0,0.00018595,20]
[384077574,1757250821824,67.96525478,0.00018783,26]
[384077692,1757251799665,29999.1390246,0.00029035,60]
[384077721,1757251832605,-1130.4,0.00013497,2]
[384077740,1757251838490,-480.10933225,0.00013497,2]
[384077741,1757251838500,-300.0,0.00013499,2]
[384077742,1757251838509,-332.9480704,0.00013499,2]
[384077743,1757251838520,-867.0519296,0.00013499,2]
[384077744,1757251838530,-154.76633067,0.00013499,2]
[384077745,1757251838542,-500.0,0.00013499,2]
[384077746,1757251838551,-500.0,0.00013499,2]
[384077747,1757251838560,-178.84875723,0.00013499,2]
[384077748,1757251838570,-500.0,0.00013499,2]
[384077749,1757251838579,-500.0,0.00013499,2]
[384077750,1757251838588,-500.0,0.00013499,2]
[384077752,1757251838597,-500.0,0.00013499,2]
[384077753,1757251838606,-310.56541207,0.00013499,2]
[384077754,1757251838615,-36908.27013501,0.000135,2]
[384077766,1757251840717,-45902.32999998,0.000135,2]
[384077823,1757251846779,-47169.76881385,0.000135,2]
[384077825,1757251846789,-1312.32,0.00013598,2]
[384077827,1757251846799,-337.73998242,0.00013598,2]
[384077829,1757251846808,-12889.83814697,0.00013598,2]
[384077831,1757251846817,-151.38382556,0.0001369,2]
[384077833,1757251846827,-1799.54032443,0.00013695,2]
[384077835,1757251846836,-276.04100296,0.00013697,2]
[384077837,1757251846845,-480.0,0.00013698,2]
[384077839,1757251846854,-314.57326637,0.00013698,2]
[384077841,1757251846864,-480.0,0.00013698,2]
[384077843,1757251846874,-480.0,0.00013698,2]
[384077845,1757251846883,-480.0,0.00013698,2]
[384077847,1757251846893,-480.0,0.00013698,2]
[384077849,1757251846903,-480.0,0.00013698,2]
[384077851,1757251846914,-481.95646586,0.00013698,2]
[384077853,1757251846924,-403.93639956,0.00013698,2]
[384077855,1757251846933,-534.51,0.00013698,2]
[384077857,1757251846943,-225.2,0.00013698,2]
[384077859,1757251846953,-480.0,0.00013698,2]
[384077860,1757251846963,-205.38,0.00013698,2]
[384077862,1757251846972,-335.73,0.00013698,2]
[384077864,1757251846981,-480.0,0.00013698,2]
[384077866,1757251846990,-480.0,0.00013698,2]
[384077868,1757251847000,-480.0,0.00013698,2]
[384077870,1757251847010,-480.0,0.00013698,2]
[384077872,1757251847019,-480.0,0.00013698,2]
[384077874,1757251847029,-480.0,0.00013698,2]
[384077876,1757251847038,-594.79,0.00013698,2]
[384077878,1757251847047,-480.0,0.00013698,2]
[384077880,1757251847057,-497.51,0.00013698,2]
[384077882,1757251847067,-480.0,0.00013698,2]
[384077884,1757251847077,-480.0,0.00013698,2]
[384077886,1757251847086,-480.0,0.00013698,2]
[384077888,1757251847095,-648.04,0.00013698,2]
[384077890,1757251847104,-480.0,0.00013698,2]
[384077892,1757251847113,-480.0,0.00013698,2]
[384077894,1757251847123,-480.0,0.00013698,2]
[384077896,1757251847132,-558.58,0.00013698,2]
[384077898,1757251847142,-480.0,0.00013698,2]
[384077900,1757251847151,-480.0,0.00013698,2]
[384077902,1757251847160,-480.0,0.00013698,2]
[384077904,1757251847169,-480.0,0.00013698,2]
[384077906,1757251847178,-649.16,0.00013698,2]
[384077907,1757251847187,-480.0,0.00013698,2]
[384077909,1757251847197,-480.0,0.00013698,2]
[384077911,1757251847206,-770.77,0.00013698,2]
[384077913,1757251847215,-480.0,0.00013698,2]
[384077915,1757251847224,-480.0,0.00013698,2]
[384077917,1757251847233,-480.0,0.00013698,2]
[384077919,1757251847242,-480.0,0.00013698,2]
[384077921,1757251847252,-480.0,0.00013698,2]
[384077923,1757251847261,-480.0,0.00013698,2]
[384077925,1757251847270,-520.46,0.00013698,2]
[384077927,1757251847279,-748.23,0.00013698,2]
[384077929,1757251847289,-480.0,0.00013698,2]
[384077931,1757251847299,-480.0,0.00013698,2]
[384077933,1757251847308,-480.0,0.00013698,2]
[384077935,1757251847317,-480.0,0.00013698,2]
[384077937,1757251847327,-480.0,0.00013698,2]
[384077939,1757251847336,-611.56,0.00013698,2]
[384077941,1757251847346,-480.0,0.00013698,2]
[384077943,1757251847355,-480.0,0.00013698,2]
[384077945,1757251847364,-652.72,0.00013698,2]
[384077947,1757251847373,-480.0,0.00013698,2]
[384077949,1757251847382,-480.0,0.00013698,2]
[384077951,1757251847391,-480.0,0.00013698,2]
[384077953,1757251847402,-480.0,0.00013698,2]
[384077955,1757251847411,-480.0,0.00013698,2]
[384077957,1757251847420,-480.0,0.00013698,2]
[384077959,1757251847430,-562.52,0.00013698,2]
[384077961,1757251847439,-480.0,0.00013698,2]
[384077963,1757251847448,-480.0,0.00013698,2]
[384077965,1757251847458,-480.0,0.00013698,2]
[384077967,1757251847467,-480.0,0.00013698,2]
[384077969,1757251847477,-480.0,0.00013698,2]
[384077971,1757251847486,-480.0,0.00013698,2]
[384077973,1757251847496,-480.0,0.00013698,2]
[384077975,1757251847507,-433.42,0.00013698,2]
[384077977,1757251847516,-480.0,0.00013698,2]
[384077979,1757251847526,-179.42,0.00013698,2]
[384077980,1757251847537,-354.23,0.00013698,2]
[384077982,1757251847550,-480.0,0.00013698,2]
[384077985,1757251847560,-480.0,0.00013698,2]
[384077986,1757251847569,-480.0,0.00013698,2]
[384078001,1757251847706,-480.0,0.00013698,2]
[384078004,1757251847716,-480.0,0.00013698,2]
[384078005,1757251847726,-221.15,0.00013698,2]
[384078008,1757251847736,-480.0,0.00013698,2]
[384078010,1757251847747,-480.0,0.00013698,2]
[384078012,1757251847756,-480.0,0.00013698,2]
[384078014,1757251847765,-675.2,0.00013698,2]
[384078016,1757251847776,-480.0,0.00013698,2]
[384078018,1757251847785,-1076.6,0.00013698,2]
[384078020,1757251847794,-480.0,0.00013698,2]
[384078022,1757251847804,-634.78,0.00013698,2]
[384078024,1757251847814,-930.24,0.00013698,2]
[384078026,1757251847823,-948.54,0.00013698,2]
[384078028,1757251847833,-723.67,0.00013698,2]
[384078030,1757251847843,-480.0,0.00013698,2]
[384078032,1757251847852,-878.12,0.00013698,2]
[384078034,1757251847862,-481.56346662,0.00013698,2]
[384078036,1757251847872,-480.0,0.00013698,2]
[384078038,1757251847881,-480.0,0.00013698,2]
[384078040,1757251847891,-514.80712434,0.00013698,2]
[384078042,1757251847901,-684.37,0.00013698,2]
[384078044,1757251847910,-400.78147617,0.00013698,2]
[384078046,1757251847919,-531.33,0.00013698,2]
[384078048,1757251847928,-457.16364871,0.00013698,2]
[384078050,1757251847937,-480.0,0.00013698,2]
[384078051,1757251847946,-480.0,0.00013698,2]
[384078054,1757251847956,-978.36,0.00013698,2]
[384078055,1757251847965,-480.0,0.00013698,2]
[384078057,1757251847975,-1183.54,0.00013698,2]
[384078060,1757251847985,-480.0,0.00013698,2]
[384078062,1757251847995,-615.18,0.00013698,2]
[384078063,1757251848004,-489.24,0.00013698,2]
[384078065,1757251848014,-480.0,0.00013698,2]
[384078067,1757251848023,-487.95704442,0.00013698,2]
[384078069,1757251848033,-480.0,0.00013698,2]
[384078071,1757251848044,-423.87,0.00013698,2]
[384078073,1757251848053,-480.0,0.00013698,2]
[384078075,1757251848062,-480.0,0.00013698,2]
[384078077,1757251848071,-480.0,0.00013698,2]
[384078079,1757251848081,-487.07207122,0.00013698,2]
[384078081,1757251848091,-480.0,0.00013698,2]
[384078083,1757251848101,-480.0,0.00013698,2]
[384078085,1757251848111,-480.0,0.00013698,2]
[384078087,1757251848120,-480.0,0.00013698,2]
[384078089,1757251848130,-480.0,0.00013698,2]
[384078091,1757251848140,-480.0,0.00013698,2]
[384078093,1757251848149,-480.0,0.00013698,2]
[384078095,1757251848159,-480.0,0.00013698,2]
[384078097,1757251848169,-1426.97,0.00013698,2]
[384078099,1757251848179,-482.66635438,0.00013698,2]
[384078101,1757251848189,-588.1612267,0.00013698,2]
[384078103,1757251848199,-480.0,0.00013698,2]
[384078105,1757251848208,-675.32,0.00013698,2]
[384078107,1757251848218,-480.0,0.00013698,2]
[384078109,1757251848227,-705.1,0.00013698,2]
[384078111,1757251848237,-481.05948804,0.00013698,2]
[384078113,1757251848246,-480.0,0.00013698,2]
[384078115,1757251848255,-480.0,0.00013698,2]
[384078117,1757251848265,-480.0,0.00013698,2]
[384078119,1757251848275,-3565.67,0.00013698,2]
[384078121,1757251848285,-480.0,0.00013698,2]
[384078123,1757251848295,-480.0,0.00013698,2]
[384078125,1757251848305,-480.0,0.00013698,2]
[384078127,1757251848315,-329.23,0.00013698,2]
[384078129,1757251848325,-576.48,0.00013698,2]
[384078131,1757251848334,-480.0,0.00013698,2]
[384078133,1757251848344,-471.31871646,0.00013698,2]
[384078135,1757251848353,-480.0,0.00013698,2]
[384078137,1757251848363,-628.95,0.00013698,2]
[384078139,1757251848372,-480.0,0.00013698,2]
[384078141,1757251848382,-480.0,0.00013698,2]
[384078143,1757251848391,-480.0,0.00013698,2]
[384078145,1757251848401,-1047.45,0.00013698,2]
[384078147,1757251848410,-480.0,0.00013698,2]
[384078149,1757251848419,-1025.22,0.00013698,2]
[384078150,1757251848429,-1105.61,0.00013698,2]
[384078152,1757251848438,-480.0,0.00013698,2]
[384078154,1757251848447,-843.59,0.00013698,2]
[384078156,1757251848456,-480.0,0.00013698,2]
[384078158,1757251848466,-480.0,0.00013698,2]
[384078160,1757251848476,-480.0,0.00013698,2]
[384078162,1757251848485,-480.0,0.00013698,2]
[384078164,1757251848495,-480.0,0.00013698,2]
[384078166,1757251848504,-480.0,0.00013698,2]
[384078168,1757251848514,-480.0,0.00013698,2]
[384078170,1757251848524,-1798.83,0.00013698,2]
[384078172,1757251848533,-192.48,0.00013698,2]
[384078174,1757251848548,-480.0,0.00013698,2]
[384078177,1757251848557,-480.0,0.00013698,2]
[384078179,1757251848567,-608.47,0.00013698,2]
[384078180,1757251848576,-480.0,0.00013698,2]
[384078182,1757251848586,-41920.28,0.00013698,2]
[384078185,1757251848595,-573.39,0.00013698,2]
[384078186,1757251848604,-480.0,0.00013698,2]
[384078188,1757251848614,-480.0,0.00013698,2]
[384078190,1757251848624,-484.68311449,0.00013698,2]
[384078193,1757251848633,-3416.33,0.00013698,2]
[384078194,1757251848643,-480.0,0.00013698,2]
[384078196,1757251848653,-3127.34,0.00013698,2]
[384078198,1757251848662,-480.0,0.00013698,2]
[384078200,1757251848671,-480.0,0.00013698,2]
[384078202,1757251848681,-595.2,0.00013698,2]
[384078204,1757251848690,-480.0,0.00013698,2]
[384078206,1757251848699,-480.0,0.00013698,2]
[384078208,1757251848708,-507.6602014,0.00013698,2]
[384078210,1757251848717,-480.0,0.00013698,2]
[384078212,1757251848726,-1124.5,0.00013698,2]
[384078214,1757251848735,-2030.04,0.00013698,2]
[384078216,1757251848744,-499.65,0.00013698,2]
[384078218,1757251848753,-1527.6,0.00013698,2]
[384078220,1757251848763,-480.0,0.00013698,2]
[384078222,1757251848772,-645.75,0.00013698,2]
[384078224,1757251848782,-480.0,0.00013698,2]
[384078226,1757251848790,-480.0,0.00013698,2]
[384078228,1757251848798,-807.3,0.00013698,2]
[384078230,1757251848807,-480.0,0.00013698,2]
[384078232,1757251848817,-480.0,0.00013698,2]
[384078234,1757251848826,-12907.55,0.00013698,2]
[384078236,1757251848836,-918.49,0.00013698,2]
[384078238,1757251848845,-894.25,0.00013698,2]
[384078240,1757251848854,-656.41,0.00013698,2]
[384078242,1757251848864,-480.0,0.00013698,2]
[384078244,1757251848874,-480.0,0.00013698,2]
[384078246,1757251848883,-480.0,0.00013698,2]
[384078248,1757251848895,-1322.99,0.00013698,2]
[384078250,1757251848904,-480.0,0.00013698,2]
[384078252,1757251848914,-3283.87,0.00013698,2]
[384078254,1757251848923,-217.5,0.00013698,2]
[384078256,1757251848933,-480.0,0.00013698,2]
[384078258,1757251848942,-2528.26,0.00013698,2]
[384078260,1757251848953,-480.0,0.00013698,2]
[384078262,1757251848962,-2125.81,0.00013698,2]
[384078264,1757251848971,-481.81647504,0.00013698,2]
[384078266,1757251848980,-480.0,0.00013698,2]
[384078267,1757251848989,-3483.63,0.00013698,2]
[384078269,1757251848999,-480.0,0.00013698,2]
[384078271,1757251849008,-1288.26,0.00013698,2]
[384078273,1757251849017,-480.0,0.00013698,2]
[384078275,1757251849025,-511.98,0.00013698,2]
[384078276,1757251849035,-1627.19,0.00013698,2]
[384078277,1757251849044,-480.0,0.00013698,2]
[384078278,1757251849053,-480.0,0.00013698,2]
[384078279,1757251849063,-838.0,0.00013698,2]
[384078280,1757251849071,-484.08737242,0.00013698,2]
[384078281,1757251849081,-480.0,0.00013698,2]
[384078282,1757251849091,-549.31,0.00013698,2]
[384078283,1757251849101,-3026.2,0.00013698,2]
[384078284,1757251849111,-1681.36,0.00013698,2]
[384078285,1757251849121,-6420.51,0.00013698,2]
[384078286,1757251849132,-480.0,0.00013698,2]
[384078287,1757251849141,-435.60249108,0.00013698,2]
[384078288,1757251849151,-554.55,0.00013698,2]
[384078289,1757251849160,-480.0,0.00013698,2]
[384078290,1757251849170,-480.0,0.00013698,2]
[384078291,1757251849180,-480.0,0.00013698,2]
[384078292,1757251849190,-512.06,0.00013698,2]
[384078293,1757251849199,-480.0,0.00013698,2]
[384078294,1757251849209,-2805.86,0.00013698,2]
[384078295,1757251849219,-480.0,0.00013698,2]
[384078296,1757251849229,-480.0,0.00013698,2]
[384078297,1757251849239,-480.0,0.00013698,2]
[384078298,1757251849248,-963.51,0.00013698,2]
[384078299,1757251849258,-716.71,0.00013698,2]
[384078300,1757251849268,-669.87,0.00013698,2]
[384078301,1757251849278,-480.0,0.00013698,2]
[384078302,1757251849287,-1215.65,0.00013698,2]
[384078303,1757251849296,-480.0,0.00013698,2]
[384078304,1757251849306,-480.0,0.00013698,2]
[384078306,1757251849315,-905.47,0.00013698,2]
[384078308,1757251849325,-462.24781293,0.00013698,2]
[384078310,1757251849334,-480.0,0.00013698,2]
[384078312,1757251849344,-1979.33,0.00013698,2]
[384078314,1757251849353,-1133.46,0.00013698,2]
[384078316,1757251849363,-1062.24,0.00013698,2]
[384078318,1757251849372,-2357.34,0.00013698,2]
[384078320,1757251849382,-650.59,0.00013698,2]
[384078322,1757251849391,-2919.91,0.00013698,2]
[384078324,1757251849401,-4336.06,0.00013698,2]
[384078326,1757251849410,-2865.65,0.00013698,2]
[384078328,1757251849420,-822.65,0.00013698,2]
[384078330,1757251849429,-480.9208494,0.00013698,2]
[384078331,1757251849439,-1187.26,0.00013698,2]
[384078333,1757251849448,-736.13,0.00013698,2]
[384078335,1757251849458,-290.97,0.00013698,2]
[384078337,1757251849467,-486.51,0.00013698,2]
[384078339,1757251849476,-480.0,0.00013698,2]
[384078341,1757251849485,-480.0,0.00013698,2]
[384078343,1757251849494,-628.49,0.00013698,2]
[384078345,1757251849503,-555.8,0.00013698,2]
[384078347,1757251849513,-480.0,0.00013698,2]
[384078349,1757251849523,-480.0,0.00013698,2]
[384078351,1757251849532,-480.0,0.00013698,2]
[384078353,1757251849547,-1011.54,0.00013698,2]
[384078355,1757251849556,-2632.88,0.00013698,2]
[384078357,1757251849565,-480.0,0.00013698,2]
[384078359,1757251849575,-818.49,0.00013698,2]
[384078361,1757251849584,-480.0,0.00013698,2]
[384078363,1757251849593,-228.77865839,0.00013698,2]
[384078365,1757251849604,-480.0,0.00013698,2]
[384078367,1757251849615,-480.0,0.00013698,2]
[384078369,1757251849624,-480.0,0.00013698,2]
[384078371,1757251849634,-480.0,0.00013698,2]
[384078373,1757251849643,-480.0,0.00013698,2]
[384078375,1757251849653,-1042.29,0.00013698,2]
[384078377,1757251849663,-603.07,0.00013698,2]
[384078379,1757251849673,-282.39888989,0.00013698,2]
[384078381,1757251849682,-480.0,0.00013698,2]
[384078383,1757251849691,-480.0,0.00013698,2]
[384078385,1757251849701,-151.0,0.00013698,2]
[384078387,1757251849712,-480.0,0.00013698,2]
[384078389,1757251849721,-480.0,0.00013698,2]
[384078391,1757251849731,-1036.85,0.00013698,2]
[384078393,1757251849740,-512.99891649,0.00013698,2]
[384078395,1757251849750,-481.62485441,0.00013698,2]
[384078397,1757251849759,-480.0,0.00013698,2]
[384078399,1757251849768,-1096.1,0.00013698,2]
[384078401,1757251849778,-480.0,0.00013698,2]
[384078403,1757251849788,-500.0,0.00013698,2]
[384078405,1757251849798,-500.0,0.00013698,2]
[384078407,1757251849807,-500.0,0.00013698,2]
[384078409,1757251849816,-480.0,0.00013698,2]
[384078411,1757251849826,-500.0,0.00013698,2]
[384078413,1757251849835,-500.0,0.00013698,2]
[384078415,1757251849845,-500.0,0.00013698,2]
[384078417,1757251849856,-500.0,0.00013698,2]
[384078419,1757251849866,-500.0,0.00013698,2]
[384078421,1757251849877,-488.83323291,0.00013698,2]
[384078423,1757251849887,-500.0,0.00013698,2]
[384078425,1757251849897,-5247.53,0.00013698,2]
[384078427,1757251849907,-480.0,0.00013698,2]
[384078429,1757251849918,-917.02,0.00013698,2]
[384078431,1757251849928,-532.99,0.00013698,2]
[384078444,1757251850040,-500.0,0.00013698,2]
[384078446,1757251850051,-946.942807,0.00013699,2]
[384078448,1757251850062,-487.604229,0.00013699,2]
[384078450,1757251850071,-160.0,0.00013717,2]
[384078452,1757251850080,-160.0,0.00013717,2]
[384078454,1757251850090,-203.24090201,0.00013717,2]
[384078456,1757251850099,-846.64878038,0.00013717,2]
[384078458,1757251850109,-233.01044003,0.00013717,2]
[384078460,1757251850119,-160.0,0.00013717,2]
[384078462,1757251850128,-217.60587337,0.00013717,2]
[384078464,1757251850138,-417.15472785,0.00013717,2]
[384078466,1757251850147,-160.0,0.00013717,2]
[384078468,1757251850156,-530.64473063,0.00013717,2]
[384078470,1757251850165,-160.0,0.00013717,2]
[384078472,1757251850175,-161.448,0.0001385,2]
[384078473,1757251850183,-195.09753074,0.0001385,2]
[384078475,1757251850193,-300.0,0.00013869,2]
[384078477,1757251850202,-300.0,0.00013869,2]
[384078479,1757251850212,-300.0,0.00013869,2]
[384078481,1757251850221,-300.0,0.00013869,2]
[384078483,1757251850230,-300.0,0.00013869,2]
[384078485,1757251850239,-300.0,0.00013869,2]
[384078487,1757251850249,-300.0,0.00013869,2]
[384078489,1757251850258,-300.0,0.00013869,2]
[384078491,1757251850268,-300.0,0.00013869,2]
[384078493,1757251850277,-300.0,0.00013869,2]
[384078495,1757251850287,-300.0,0.00013869,2]
[384078497,1757251850296,-300.0,0.00013869,2]
[384078499,1757251850306,-300.0,0.00013869,2]
[384078501,1757251850316,-300.0,0.00013869,2]
[384078503,1757251850325,-300.0,0.00013869,2]
[384078505,1757251850335,-1000.0,0.00013872,2]
[384078507,1757251850346,-974.0,0.0001389,2]
[384078509,1757251850355,-634.0,0.0001389,2]
[384078511,1757251850364,-2154.0,0.0001389,2]
[384078513,1757251850374,-409.0,0.0001389,2]
[384078515,1757251850383,-600.0,0.00013971,2]
[384078517,1757251850393,-480.0,0.00013972,2]
[384078519,1757251850403,-390.75,0.00013972,2]
[384078521,1757251850412,-534.51,0.00013972,2]
[384078523,1757251850421,-235.91837116,0.00013972,2]
[384078525,1757251850431,-480.0,0.00013972,2]
[384078527,1757251850440,-480.0,0.00013972,2]
[384078529,1757251850449,-588.93,0.00013972,2]
[384078531,1757251850459,-480.0,0.00013972,2]
[384078533,1757251850468,-480.0,0.00013972,2]
[384078535,1757251850477,-497.51,0.00013972,2]
[384078537,1757251850487,-480.0,0.00013972,2]
[384078539,1757251850497,-648.04,0.00013972,2]
[384078541,1757251850506,-538.67,0.00013972,2]
[384078543,1757251850516,-480.0,0.00013972,2]
[384078545,1757251850525,-480.0,0.00013972,2]
[384078547,1757251850535,-558.58,0.00013972,2]
[384078549,1757251850553,-480.0,0.00013972,2]
[384078551,1757251850562,-480.0,0.00013972,2]
[384078553,1757251850571,-605.2,0.00013972,2]
[384078555,1757251850581,-649.16,0.00013972,2]
[384078557,1757251850591,-495.99,0.00013972,2]
[384078559,1757251850600,-151.0,0.00013972,2]
[384078561,1757251850609,-770.77,0.00013972,2]
[384078563,1757251850619,-575.12,0.00013972,2]
[384078565,1757251850628,-406.93,0.00013972,2]
[384078567,1757251850637,-480.0,0.00013972,2]
[384078569,1757251850646,-480.0,0.00013972,2]
[384078571,1757251850656,-480.0,0.00013972,2]
[384078573,1757251850665,-520.46,0.00013972,2]
[384078575,1757251850675,-748.23,0.00013972,2]
[384078577,1757251850684,-173.64,0.00013972,2]
[384078578,1757251850694,-480.0,0.00013972,2]
[384078581,1757251850704,-480.0,0.00013972,2]
[384078582,1757251850715,-480.0,0.00013972,2]
[384078585,1757251850724,-611.56,0.00013972,2]
[384078586,1757251850734,-480.0,0.00013972,2]
[384078588,1757251850744,-652.72,0.00013972,2]
[384078590,1757251850754,-480.0,0.00013972,2]
[384078592,1757251850764,-480.0,0.00013972,2]
[384078594,1757251850774,-311.37,0.00013972,2]
[384078596,1757251850784,-369.34,0.00013972,2]
[384078598,1757251850793,-562.52,0.00013972,2]
[384078600,1757251850806,-480.0,0.00013972,2]
[384078602,1757251850816,-480.0,0.00013972,2]
[384078604,1757251850826,-423.98,0.00013972,2]
[384078606,1757251850835,-480.0,0.00013972,2]
[384078608,1757251850845,-480.0,0.00013972,2]